bitfinex-derivatives/quotes_BTCF0:USTF0_20250903
["timestamp","ask_amount","ask_price","bid_price","bid_amount"]
[1756906573234,0.003,111520.0,111510.0,1.25093329]
[1756906573836,0.003,111520.0,111510.0,0.65013]
[1756906574232,0.002,111520.0,111510.0,0.7407936]
[1756906574436,0.002,111520.0,111510.0,2.20307689]
[1756906574629,0.0001,111540.0,111520.0,0.03933]
[1756906574831,0.0001,111560.0,111550.0,0.03933]
[1756906575145,0.38536289,111560.0,111550.0,0.01443]
[1756906575334,0.98616618,111560.0,111540.0,0.0001]
[1756906575534,1.89631197,111550.0,111540.0,0.0001]
[1756906575734,1.96872654,111550.0,111530.0,0.03554767]
[1756906575934,0.36096,111540.0,111530.0,0.03554767]
[1756906576242,0.38536289,111540.0,111530.0,0.03544767]
[1756906577041,0.38536289,111540.0,111530.0,0.06034767]
[1756906577429,0.02456289,111540.0,111530.0,0.42114767]
[1756906577632,0.02440289,111540.0,111530.0,1.34481964]
[1756906577831,0.41707168,111560.0,111550.0,0.03933]
[1756906578044,0.44140882,111560.0,111550.0,0.03933]
[1756906578231,1.30336882,111560.0,111550.0,0.03933]
[1756906578741,1.29536882,111560.0,111550.0,0.03933]
[1756906579738,1.29836882,111560.0,111550.0,0.03933]
[1756906579936,1.29836882,111560.0,111550.0,0.01443]
[1756906580635,1.65916882,111560.0,111550.0,0.01443]
[1756906580843,2.58284079,111560.0,111540.0,0.0001]
[1756906581038,0.36096,111550.0,111540.0,0.01453]
[1756906581342,0.38539714,111550.0,111540.0,0.03933]
[1756906582448,0.38739714,111550.0,111540.0,0.03933]
[1756906582645,0.02659714,111550.0,111540.0,0.03933]
[1756906582838,0.02643714,111550.0,111540.0,0.96300197]
[1756906583338,0.02643714,111550.0,111540.0,1.32380197]
[1756906583556,0.02643714,111550.0,111540.0,1.41344117]
[1756906583843,0.02643714,111550.0,111540.0,1.32380197]
[1756906584039,0.02943714,111550.0,111540.0,1.32380197]
[1756906584241,0.02943714,111550.0,111540.0,0.65013]
[1756906584545,0.02959714,111550.0,111540.0,0.03933]
[1756906584949,0.39039714,111550.0,111540.0,0.03933]
[1756906585442,2.17790911,111550.0,111530.0,0.03554767]
[1756906585644,1.30224882,111550.0,111530.0,0.03554767]
[1756906585843,0.67383197,111540.0,111530.0,0.03554767]
[1756906586146,1.05906911,111540.0,111530.0,0.03544767]
[1756906586449,0.38539714,111540.0,111530.0,0.02101767]
[1756906586643,1.05906911,111540.0,111530.0,0.02101767]
[1756906587238,1.30906911,111540.0,111530.0,0.02101767]
[1756906587436,1.35708079,111540.0,111530.0,0.02101767]
[1756906587642,1.37337046,111540.0,111530.0,0.02101767]
[1756906587844,1.3734014,111540.0,111520.0,0.0001]
[1756906588038,1.9460036,111530.0,111520.0,0.0001]
[1756906588244,1.97047168,111530.0,111510.0,0.01453]
[1756906588444,0.36096,111520.0,111510.0,0.01443]
[1756906588749,0.38542808,111520.0,111510.0,0.01443]
[1756906589136,1.05910005,111520.0,111500.0,0.37523]
[1756906589350,0.43363971,111520.0,111500.0,0.37523]
[1756906589649,1.29651971,111520.0,111510.0,0.01443]
[1756906590149,1.29651971,111520.0,111510.0,0.03933]
[1756906590741,0.43363971,111520.0,111510.0,0.03933]
[1756906590945,0.07283971,111520.0,111510.0,0.03933]
[1756906591142,0.07269991,111520.0,111510.0,0.96300197]
[1756906591338,0.04837163,111520.0,111510.0,0.03933]
[1756906591543,1.29645991,111520.0,111510.0,0.03933]
[1756906592144,1.29645991,111520.0,111510.0,0.01443]
[1756906592342,1.97013188,111520.0,111500.0,0.01543]
[1756906592749,1.97113188,111520.0,111500.0,0.01443]
[1756906593750,0.86288,111510.0,111500.0,0.03933]
[1756906593947,0.02448828,111510.0,111500.0,1.07380197]
[1756906594245,0.02448828,111510.0,111500.0,1.32380197]
[1756906594450,0.02448828,111510.0,111500.0,1.41347167]
[1756906594653,0.02448828,111510.0,111500.0,1.32380197]
[1756906595346,0.02448828,111510.0,111500.0,1.41347277]
[1756906595553,0.02448828,111510.0,111500.0,1.32380197]
[1756906595747,0.02448828,111510.0,111500.0,0.65013]
[1756906596052,0.02464828,111510.0,111500.0,0.03933]
[1756906596353,0.02464828,111510.0,111500.0,0.01443]
[1756906596547,2.17192025,111510.0,111500.0,0.01543]
[1756906596740,2.17192025,111510.0,111500.0,0.001]
[1756906596945,2.22013188,111510.0,111500.0,0.002]
[1756906597449,2.22013188,111510.0,111500.0,0.001]
[1756906597654,2.22013188,111510.0,111480.0,0.01443]
[1756906597856,1.03463197,111490.0,111480.0,0.01443]
[1756906598043,1.92228025,111490.0,111480.0,0.01443]
[1756906598349,1.92228025,111490.0,111480.0,0.28933]
[1756906598350,0.38528828,111490.0,111480.0,0.28933]
[1756906598551,0.38528828,111490.0,111480.0,0.65013]
[1756906598552,0.02448828,111490.0,111480.0,0.65013]
[1756906598851,0.02448828,111490.0,111480.0,1.32380197]
[1756906599447,0.02448828,111490.0,111480.0,0.65013]
[1756906600445,0.36106,111500.0,111490.0,0.01436]
[1756906600648,0.38526051,111500.0,111490.0,0.03869]
[1756906601047,0.38542051,111500.0,111490.0,0.03869]
[1756906601244,0.38526051,111500.0,111490.0,0.03869]
[1756906601449,0.38542051,111500.0,111490.0,0.01436]
[1756906601759,1.30909248,111500.0,111480.0,0.37623]
[1756906601960,0.86312,111490.0,111480.0,0.37623]
[1756906602158,0.86312,111490.0,111480.0,0.40056]
[1756906602456,2.17204495,111490.0,111480.0,0.01543]
[1756906602851,2.17204495,111490.0,111480.0,0.01443]
[1756906603755,0.63541298,111490.0,111480.0,0.03876]
[1756906603962,0.00126,111500.0,111490.0,0.03869]
[1756906604260,0.02460327,111500.0,111490.0,0.39949]
[1756906604457,0.02460327,111500.0,111490.0,0.03869]
[1756906605560,1.22402,111510.0,111500.0,0.03869]
[1756906605864,1.24836028,111510.0,111500.0,0.03869]
[1756906606157,1.24852028,111510.0,111500.0,0.03869]
[1756906606358,1.92219225,111510.0,111500.0,0.01436]
[1756906606548,1.24852028,111510.0,111500.0,0.03869]
[1756906607060,1.24852028,111510.0,111490.0,0.01436]
[1756906607256,0.38534028,111510.0,111500.0,0.03869]
[1756906607456,0.3608,111510.0,111500.0,0.03869]
[1756906607658,0.00026,111520.0,111510.0,0.03869]
[1756906607863,0.86372,111520.0,111510.0,0.03869]
[1756906608162,0.88815612,111520.0,111510.0,0.03869]
[1756906608370,1.24895612,111520.0,111510.0,0.03869]
[1756906608956,2.17262809,111520.0,111500.0,0.01436]
[1756906609156,0.36096,111510.0,111500.0,0.01436]
[1756906609352,0.36096,111510.0,111490.0,0.01436]
[1756906609556,1.89763197,111500.0,111490.0,0.01436]
[1756906609965,2.14763197,111500.0,111480.0,0.01443]
[1756906610163,1.03463197,111490.0,111460.0,0.01436]
[1756906610364,1.39527197,111470.0,111450.0,1.140692]
[1756906610665,1.89699197,111460.0,111450.0,0.020692]
[1756906610864,1.92144483,111460.0,111450.0,0.020692]
[1756906611061,2.17244483,111460.0,111450.0,0.020692]
[1756906611254,2.17244483,111460.0,111450.0,0.035052]
[1756906611255,0.02445286,111460.0,111450.0,0.035052]
[1756906611463,0.3608,111460.0,111450.0,0.035052]
[1756906611663,0.3528,111460.0,111450.0,0.035052]
[1756906612163,0.37724693,111460.0,111450.0,0.035052]
[1756906612768,1.0509189,111460.0,111450.0,0.020692]
[1756906613566,1.0519189,111460.0,111450.0,0.020692]
[1756906613862,1.3019189,111460.0,111430.0,0.3958462]
[1756906614058,0.67367197,111440.0,111430.0,1.5158462]
[1756906614263,1.89657197,111450.0,111430.0,1.5158462]
[1756906614464,1.89669197,111450.0,111440.0,0.01436]
[1756906614664,1.92102714,111450.0,111430.0,1.5158462]
[1756906614967,0.67367197,111440.0,111430.0,0.3958462]
[1756906615154,0.67367197,111440.0,111420.0,0.01436]
[1756906615155,1.05889946,111440.0,111420.0,0.01436]
[1756906615358,0.86308,111430.0,111420.0,0.01436]
[1756906615967,0.0001,111440.0,111430.0,0.01436]
[1756906616161,0.86312,111440.0,111430.0,0.01436]
[1756906616360,0.86328,111440.0,111430.0,0.03869]
[1756906616561,1.22408,111440.0,111430.0,0.03869]
[1756906616867,1.92217065,111440.0,111430.0,0.01436]
[1756906617061,1.92117065,111440.0,111430.0,0.01436]
[1756906617256,1.92117065,111440.0,111420.0,0.37516]
[1756906617567,1.92127065,111440.0,111420.0,0.37516]
[1756906617767,0.67367197,111430.0,111420.0,0.37516]
[1756906618065,1.05903477,111430.0,111410.0,1.13436]
[1756906618362,1.53611197,111420.0,111410.0,0.01436]
[1756906618566,1.89591197,111420.0,111410.0,0.01436]
[1756906618866,1.22224,111420.0,111410.0,0.03869]
[1756906619065,1.22224,111420.0,111410.0,0.01436]
[1756906619265,0.36096,111420.0,111410.0,0.01436]
[1756906619470,1.90031197,111420.0,111410.0,0.01436]
[1756906619661,1.03463197,111420.0,111410.0,0.01436]
[1756906619857,1.90103197,111420.0,111410.0,0.01436]
[1756906620062,1.90103197,111420.0,111400.0,0.01446]
[1756906620266,1.03473197,111420.0,111400.0,1.13446]
[1756906620470,1.90001197,111420.0,111400.0,1.13446]
[1756906620761,1.89993197,111420.0,111400.0,1.13446]
[1756906620967,1.25065272,111420.0,111410.0,0.001]
[1756906621167,1.61135272,111420.0,111410.0,0.001]
[1756906621665,1.86335272,111420.0,111400.0,0.0011]
[1756906621870,0.3608,111410.0,111400.0,0.0011]
[1756906622172,1.92430469,111410.0,111400.0,0.0031]
[1756906622664,0.38519272,111410.0,111400.0,0.01746]
[1756906622861,0.02439272,111410.0,111400.0,0.01746]
[1756906623063,0.02439272,111410.0,111400.0,0.04179]
[1756906623269,0.0021,111420.0,111410.0,0.01436]
[1756906623462,0.86764,111420.0,111410.0,0.03869]
[1756906623660,0.89199534,111420.0,111410.0,0.03969]
[1756906623870,1.56866731,111420.0,111410.0,0.001]
[1756906624075,1.81866731,111420.0,111410.0,0.001]
[1756906624769,2.17946731,111420.0,111410.0,0.001]
[1756906625167,1.31182731,111420.0,111410.0,0.001]
[1756906625363,2.17906731,111420.0,111410.0,0.001]
[1756906625670,1.31182731,111420.0,111410.0,0.002]
[1756906625875,1.92902731,111420.0,111410.0,0.002]
[1756906626063,1.25535534,111420.0,111410.0,0.002]
[1756906626278,1.92902731,111420.0,111410.0,0.01636]
[1756906626977,2.17902731,111420.0,111410.0,0.002]
[1756906627477,2.17902731,111420.0,111400.0,0.0001]
[1756906627666,1.28447197,111410.0,111400.0,0.0001]
[1756906627866,1.98249928,111410.0,111400.0,0.0001]
[1756906628074,1.30882731,111410.0,111400.0,0.0001]
[1756906628463,3.87873928,111410.0,111360.0,0.03565007]
[1756906628669,1.03447197,111370.0,111360.0,0.03565007]
[1756906628971,1.54243197,111370.0,111360.0,0.03565007]
[1756906629174,1.54143197,111370.0,111360.0,0.03565007]
[1756906629373,0.86876,111370.0,111360.0,0.03565007]
[1756906629570,0.3609,111390.0,111370.0,0.01419]
[1756906629875,1.05879406,111390.0,111370.0,0.03813]
[1756906630071,1.25368209,111390.0,111380.0,0.03813]
[1756906630278,1.22936,111390.0,111380.0,0.03813]
[1756906630473,0.3608,111390.0,111380.0,0.01419]
[1756906630681,1.22968,111390.0,111380.0,0.28813]
[1756906630876,1.25399348,111390.0,111380.0,0.28813]
[1756906631072,1.92766545,111390.0,111370.0,0.37499]
[1756906631267,1.92766545,111390.0,111370.0,0.39893]
[1756906631476,1.03447197,111380.0,111370.0,0.01419]
[1756906631682,1.03447197,111380.0,111360.0,0.03865007]
[1756906631972,1.90315197,111370.0,111360.0,0.02329007]
[1756906632373,1.22848,111370.0,111360.0,0.03548007]
[1756906632571,1.90215197,111370.0,111360.0,0.05942007]
[1756906633073,0.3608,111370.0,111360.0,0.05942007]
[1756906633272,0.86944,111380.0,111360.0,1.34389204]
[1756906633486,1.23024,111380.0,111370.0,0.01419]
[1756906633673,1.90391197,111380.0,111370.0,0.01419]
[1756906633874,1.03447197,111380.0,111370.0,0.01419]
[1756906634279,1.03447197,111380.0,111360.0,0.03548007]
[1756906634484,1.54323197,111370.0,111360.0,0.06042007]
[1756906634686,0.3618,111380.0,111370.0,0.01419]
[1756906634984,1.90495197,111380.0,111370.0,0.01419]
[1756906635374,1.90495197,111380.0,111360.0,0.06042007]
[1756906635375,1.90395197,111380.0,111360.0,0.06042007]
[1756906635575,0.87148,111380.0,111370.0,0.03913]
[1756906635879,0.87112,111380.0,111370.0,0.03913]
[1756906636075,0.89543536,111380.0,111370.0,0.03913]
[1756906636279,1.25623536,111380.0,111370.0,0.01519]
[1756906636774,1.25623536,111380.0,111370.0,0.001]
[1756906636977,2.1101964,111380.0,111370.0,0.001]
[1756906637175,1.50623536,111380.0,111370.0,0.001]
[1756906637382,2.1101964,111380.0,111370.0,0.001]
[1756906638074,0.63711536,111380.0,111370.0,0.001]
[1756906638282,1.8604764,111380.0,111370.0,0.001]
[1756906638585,0.9910764,111380.0,111370.0,0.001]
[1756906638880,1.8605564,111380.0,111370.0,0.001]
[1756906639282,1.8585564,111380.0,111360.0,0.01419]
[1756906639478,1.22944,111370.0,111360.0,0.01419]
[1756906639683,1.25375536,111370.0,111360.0,0.01419]
[1756906639878,1.8577164,111370.0,111350.0,0.01419]
[1756906640083,0.96476104,111360.0,111350.0,0.01419]
[1756906640284,0.9890764,111360.0,111340.0,0.03548007]
[1756906640485,1.83412104,111350.0,111340.0,0.03548007]
[1756906640684,1.8584364,111350.0,111340.0,0.03548007]
[1756906640886,0.89367536,111350.0,111340.0,0.42022007]
[1756906641185,0.89367536,111350.0,111340.0,0.05942007]
[1756906641380,0.89267536,111350.0,111340.0,0.05942007]
[1756906641881,0.89267536,111350.0,111340.0,0.03548007]
[1756906641882,1.8574364,111350.0,111340.0,0.03548007]
[1756906642078,1.8574364,111350.0,111340.0,0.02129007]
[1756906642279,1.8574364,111350.0,111330.0,1.13419]
[1756906642585,1.25447536,111350.0,111340.0,0.004]
[1756906643482,1.8584364,111350.0,111340.0,0.004]
[1756906644383,1.8574364,111350.0,111330.0,0.01419]
[1756906644591,0.3608,111340.0,111330.0,0.01719]
[1756906644796,0.38511536,111340.0,111330.0,0.01719]
[1756906645288,0.38511536,111340.0,111330.0,0.03813]
[1756906645486,0.9870764,111340.0,111320.0,0.01419]
[1756906645790,1.83324104,111330.0,111320.0,0.01419]
[1756906645983,1.8575564,111330.0,111320.0,0.01419]
[1756906646184,1.25359536,111330.0,111320.0,0.03813]
[1756906646487,1.8575564,111330.0,111310.0,1.51600267]
[1756906646885,1.25359536,111330.0,111320.0,0.03813]
[1756906647082,0.02431536,111330.0,111320.0,0.03813]
[1756906647388,0.89237536,111340.0,111320.0,0.64903]
[1756906647582,1.25317536,111340.0,111330.0,0.01419]
[1756906647783,0.89227536,111340.0,111330.0,0.01529]
[1756906647979,0.89227536,111340.0,111330.0,0.03923]
[1756906648187,0.89567536,111340.0,111330.0,0.29023]
[1756906648386,1.25647536,111340.0,111330.0,0.29023]
[1756906648690,2.15864803,111340.0,111330.0,0.0011]
[1756906648989,2.15564803,111340.0,111330.0,0.0001]
[1756906649185,2.15964803,111340.0,111330.0,0.0011]
[1756906650285,1.04128803,111340.0,111330.0,0.0011]
[1756906650496,0.43732699,111340.0,111330.0,0.01529]
[1756906650691,1.25755536,111340.0,111330.0,0.03923]
[1756906651291,1.25755536,111340.0,111330.0,0.01529]
[1756906651292,1.23324,111340.0,111330.0,0.01529]
[1756906651490,1.86162947,111340.0,111330.0,0.01529]
[1756906651687,1.86162947,111340.0,111330.0,0.0011]
[1756906652391,1.83720104,111340.0,111330.0,0.0011]
[1756906652887,2.15984508,111340.0,111330.0,0.0011]
[1756906653092,2.13541267,111340.0,111330.0,0.0011]
[1756906653483,2.08720104,111340.0,111330.0,0.0011]
[1756906654284,2.11165462,111340.0,111290.0,0.03543406]
[1756906654595,0.96476104,111300.0,111280.0,0.03813]
[1756906654791,1.22904,111290.0,111280.0,0.03813]
[1756906655098,1.25349358,111290.0,111280.0,0.03813]
[1756906655890,0.89297358,111290.0,111280.0,0.65093]
[1756906656297,0.02445358,111290.0,111280.0,0.40093]
[1756906656592,0.02345358,111290.0,111280.0,0.40093]
[1756906657088,0.02345358,111290.0,111280.0,0.04013]
[1756906657290,0.02345358,111290.0,111280.0,0.29013]
[1756906657291,0.98821462,111290.0,111280.0,0.29013]
[1756906657492,0.98921462,111290.0,111280.0,0.01719]
[1756906657687,0.98921462,111290.0,111280.0,0.001]
[1756906657889,1.28743024,111290.0,111280.0,0.003]
[1756906658088,1.28743024,111290.0,111260.0,0.02124042]
[1756906658289,0.96476104,111270.0,111250.0,0.01419]
[1756906658493,1.83264104,111260.0,111240.0,0.01419]
[1756906658690,0.96476104,111250.0,111230.0,0.01419]
[1756906658891,0.3608,111240.0,111230.0,0.01419]
[1756906659086,1.2294,111240.0,111230.0,0.01419]
[1756906659290,1.22928,111240.0,111230.0,0.01419]
[1756906659486,1.2292,111240.0,111230.0,0.01419]
[1756906659686,0.3608,111240.0,111230.0,0.01419]
[1756906659893,0.3608,111250.0,111240.0,0.03862]
[1756906660093,0.86836,111250.0,111240.0,0.03862]
[1756906660396,0.3608,111260.0,111250.0,0.01488]
[1756906660695,0.96476104,111270.0,111250.0,0.03862]
[1756906660900,0.3608,111270.0,111260.0,0.01488]
[1756906661105,1.83332104,111270.0,111250.0,0.01488]
[1756906661392,0.96476104,111260.0,111230.0,0.01419]
[1756906661594,0.3608,111240.0,111230.0,0.01419]
[1756906661793,1.22964,111240.0,111230.0,0.04093]
[1756906661988,1.2296,111240.0,111230.0,0.04093]
[1756906662700,0.8688,111240.0,111230.0,0.04093]
[1756906662898,0.86972,111250.0,111240.0,0.03862]
[1756906663394,0.96476104,111250.0,111240.0,0.01488]
[1756906663587,1.83380104,111250.0,111230.0,0.01719]
[1756906663790,0.96476104,111240.0,111230.0,0.01719]
[1756906663996,0.3608,111240.0,111230.0,0.01719]
[1756906664196,0.3608,111240.0,111230.0,0.01419]
[1756906664396,0.3608,111240.0,111230.0,0.01719]
[1756906664999,0.96476104,111240.0,111230.0,0.003]
[1756906665399,0.3608,111240.0,111220.0,0.39942]
[1756906665708,1.23008,111240.0,111230.0,0.04162]
[1756906666400,1.22972,111240.0,111230.0,0.29162]
[1756906666599,1.23172,111240.0,111230.0,0.29162]
[1756906667299,1.23172,111240.0,111230.0,0.01788]
[1756906667703,1.83568104,111240.0,111230.0,0.01788]
[1756906667901,1.23172,111240.0,111230.0,0.01488]
[1756906668100,0.3638,111240.0,111230.0,0.03862]
[1756906668397,0.003,111240.0,111230.0,0.7393076]
[1756906668696,0.003,111240.0,111230.0,0.64942]
[1756906669096,0.003,111240.0,111230.0,0.7393076]
[1756906669496,0.002,111240.0,111230.0,1.34326864]
[1756906669903,0.002,111240.0,111230.0,0.7423076]
[1756906670201,0.3609,111260.0,111250.0,0.01488]
[1756906670499,1.2302,111260.0,111250.0,0.01488]
[1756906670804,1.2302,111260.0,111240.0,0.01488]
[1756906670805,1.83416104,111260.0,111240.0,0.01488]
[1756906671007,1.83416104,111260.0,111230.0,0.37868]
[1756906671008,0.96476104,111250.0,111230.0,0.37868]
[1756906671205,1.47344104,111240.0,111230.0,0.3638]
[1756906671503,2.08424104,111240.0,111230.0,0.003]
[1756906671796,2.10858137,111240.0,111230.0,0.003]
[1756906671996,2.10858137,111240.0,111200.0,0.02072086]
[1756906672302,0.96276104,111210.0,111200.0,0.02072086]
[1756906672499,1.83284104,111210.0,111200.0,0.02072086]
[1756906672801,1.85718267,111210.0,111200.0,0.02072086]
[1756906673003,1.85718267,111210.0,111200.0,0.02082086]
[1756906673400,1.85662267,111210.0,111200.0,0.02082086]
[1756906673704,0.98710267,111210.0,111200.0,0.02082086]
[1756906673901,0.38314163,111210.0,111200.0,0.03570086]
[1756906674198,1.14834163,111210.0,111200.0,0.03570086]
[1756906674392,1.14834163,111210.0,111200.0,0.03670086]
[1756906674594,2.00230267,111210.0,111200.0,0.02182086]
[1756906674794,2.00230267,111210.0,111200.0,0.0011]
[1756906675207,1.23810267,111210.0,111200.0,0.0011]
[1756906675507,2.10918267,111210.0,111200.0,0.0001]
[1756906675701,2.11118267,111210.0,111200.0,0.0011]
[1756906676206,2.11094267,111210.0,111200.0,0.0011]
[1756906677506,4.01058267,111210.0,111200.0,0.0011]
[1756906677711,0.60396104,111190.0,111180.0,0.0001]
[1756906677901,1.83528104,111190.0,111170.0,0.03872]
[1756906678099,1.83528104,111190.0,111170.0,0.01498]
[1756906678100,0.96476104,111180.0,111170.0,0.01498]
[1756906678405,0.96476104,111180.0,111160.0,0.39952]
[1756906678601,0.96476104,111180.0,111170.0,0.01488]
[1756906678810,1.83652104,111180.0,111170.0,0.01488]
[1756906679105,1.83552104,111180.0,111170.0,0.03862]
[1756906679305,0.96376104,111180.0,111170.0,0.03862]
[1756906679511,1.83584104,111180.0,111170.0,0.01488]
[1756906680105,0.60496104,111180.0,111170.0,0.01588]
[1756906680305,0.89701075,111180.0,111170.0,0.28962]
[1756906680505,0.89705075,111180.0,111170.0,0.28962]
[1756906680905,0.001,111180.0,111170.0,0.65042]
[1756906681113,0.001,111180.0,111170.0,0.7403559]
[1756906681307,0.003,111180.0,111170.0,1.34431694]
[1756906681507,0.002,111180.0,111170.0,1.34431694]
[1756906681713,0.0001,111200.0,111190.0,0.03862]
[1756906682010,0.56084,111220.0,111190.0,0.03862]
[1756906682011,0.3609,111220.0,111210.0,0.03862]
[1756906682211,1.25687462,111220.0,111210.0,0.03862]
[1756906682506,2.11083566,111220.0,111200.0,0.01488]
[1756906682807,0.96476104,111210.0,111200.0,0.01488]
[1756906683012,0.02439462,111210.0,111200.0,0.39942]
[1756906683306,1.23336,111220.0,111210.0,0.01488]
[1756906683501,0.89696033,111220.0,111210.0,0.03862]
[1756906683706,1.26276033,111220.0,111210.0,0.01488]
[1756906683904,0.90196033,111220.0,111210.0,0.01488]
[1756906684110,0.02940033,111220.0,111210.0,0.03862]
[1756906684311,0.02940033,111220.0,111210.0,0.28862]
[1756906684312,0.90232033,111220.0,111210.0,0.28862]
[1756906684502,0.005,111220.0,111210.0,0.28862]
[1756906685114,0.012,111220.0,111210.0,0.7393237]
[1756906685711,0.005,111220.0,111210.0,0.64942]
[1756906685907,0.005,111220.0,111210.0,0.65042]
[1756906686109,0.012,111220.0,111210.0,1.34428474]
[1756906686308,0.012,111220.0,111210.0,0.7403237]
[1756906686506,0.012,111220.0,111210.0,1.34428474]
[1756906687303,0.0001,111240.0,111230.0,0.0898875]
[1756906687507,6e-05,111270.0,111260.0,0.03862]
[1756906687712,0.02444802,111270.0,111260.0,0.4892833]
[1756906688009,0.02444802,111270.0,111260.0,2.34964104]
[1756906688410,0.02444802,111270.0,111260.0,1.74568]
[1756906688603,0.02444802,111270.0,111260.0,1.49568]
[1756906688802,0.02444802,111270.0,111260.0,0.01488]
[1756906689008,0.04044802,111270.0,111260.0,0.01588]
[1756906689210,0.04944802,111270.0,111260.0,1.13688]
[1756906689605,0.03344802,111270.0,111260.0,1.13588]
[1756906689909,0.04144802,111270.0,111260.0,1.13688]
[1756906690101,0.90744802,111270.0,111260.0,1.13588]
[1756906690303,0.91044802,111270.0,111260.0,1.13688]
[1756906690508,1.27124802,111270.0,111260.0,1.13688]
[1756906690725,0.03544802,111270.0,111260.0,1.49768]
[1756906691618,0.39624802,111270.0,111260.0,1.13688]
[1756906691812,0.03544802,111270.0,111260.0,1.13688]
[1756906692118,0.011,111270.0,111260.0,2.35164104]
[1756906692420,0.011,111270.0,111260.0,2.44150424]
[1756906692607,0.0001,111310.0,111300.0,0.01404]
[1756906692920,2.26072,111320.0,111310.0,0.01404]
[1756906692921,3.13596,111320.0,111310.0,0.01404]
[1756906693110,3.16036567,111320.0,111310.0,0.01404]
[1756906693612,4.01432671,111320.0,111300.0,0.01404]
[1756906693804,0.3608,111310.0,111300.0,0.01404]
[1756906694009,0.39320567,111310.0,111300.0,0.01504]
[1756906694210,0.03240567,111310.0,111300.0,0.01504]
[1756906695505,0.02840567,111310.0,111300.0,0.01504]
[1756906696106,0.008,111310.0,111300.0,0.01504]
[1756906696314,2.26172,111320.0,111310.0,0.01404]
[1756906696315,3.135,111320.0,111310.0,0.01404]
[1756906696516,3.135,111320.0,111310.0,0.01414]
[1756906696517,3.1349,111320.0,111310.0,0.01414]
[1756906697313,3.38518,111320.0,111310.0,0.01414]
[1756906697810,3.38718,111320.0,111310.0,0.0001]
[1756906698017,3.38714,111320.0,111310.0,0.0001]
[1756906698314,2.51278,111320.0,111310.0,0.01414]
[1756906698514,3.38706,111320.0,111310.0,0.01414]
[1756906698718,2.26278,111320.0,111310.0,0.0373]
[1756906698922,3.13706,111320.0,111310.0,0.0373]
[1756906699218,3.81338353,111320.0,111310.0,0.01414]
[1756906699419,3.81538353,111320.0,111310.0,0.01514]
[1756906699615,1.2384,111320.0,111310.0,0.0383]
[1756906699819,0.3648,111320.0,111310.0,0.0383]
[1756906700017,0.36486,111320.0,111310.0,0.0383]
[1756906700614,1.04118353,111320.0,111310.0,0.01514]
[1756906701024,0.61486,111320.0,111310.0,0.0011]
[1756906701224,1.29118353,111320.0,111310.0,0.0011]
[1756906702027,1.23834,111320.0,111310.0,0.0383]
[1756906702327,1.2384,111320.0,111310.0,0.0383]
[1756906702517,0.3648,111320.0,111310.0,0.71462353]
[1756906702719,0.87764,111320.0,111310.0,0.71462353]
[1756906702915,0.87764,111320.0,111310.0,0.0383]
[1756906703317,0.87788,111320.0,111310.0,0.0383]
[1756906703520,0.87794,111320.0,111310.0,0.0383]
[1756906703716,1.23874,111320.0,111310.0,0.0383]
[1756906703920,1.91506353,111320.0,111310.0,0.0011]
[1756906705120,2.16506353,111320.0,111310.0,0.0011]
[1756906705623,2.16582353,111320.0,111310.0,0.0011]
[1756906706520,1.04118353,111320.0,111310.0,0.0011]
[1756906706722,0.36486,111320.0,111310.0,0.0383]
[1756906706923,1.91558353,111320.0,111310.0,0.0383]
[1756906707124,1.23926,111320.0,111310.0,0.0383]
[1756906707323,1.23926,111320.0,111310.0,0.01514]
[1756906707523,1.26354195,111320.0,111310.0,0.01514]
[1756906707824,1.93986548,111320.0,111310.0,0.0011]
[1756906708015,2.18986548,111320.0,111310.0,0.0011]
[1756906708619,1.51354195,111320.0,111310.0,0.0011]
[1756906708926,2.18986548,111320.0,111310.0,0.0011]
[1756906709332,1.31546548,111320.0,111310.0,0.01514]
[1756906709624,1.26474195,111320.0,111310.0,0.0383]
[1756906710120,1.26474195,111320.0,111310.0,0.01514]
[1756906710327,1.94118548,111320.0,111310.0,0.0011]
[1756906710733,1.26474195,111320.0,111310.0,0.0383]
[1756906711030,0.02834195,111320.0,111310.0,0.2883]
[1756906711228,0.90382195,111320.0,111310.0,0.96462353]
[1756906711428,0.02828195,111320.0,111310.0,1.32542353]
[1756906711623,0.02828195,111320.0,111310.0,1.41524613]
[1756906711828,0.02834195,111320.0,111310.0,0.0383]
[1756906712027,1.06546548,111320.0,111310.0,0.01514]
[1756906712225,0.38914195,111320.0,111310.0,0.01514]
[1756906712423,1.06546548,111320.0,111310.0,0.01514]
[1756906713133,0.38914195,111320.0,111310.0,0.01514]
[1756906713521,0.38908195,111320.0,111310.0,0.0011]
[1756906713725,0.38914195,111320.0,111310.0,0.01514]
[1756906714245,0.02834195,111320.0,111310.0,0.0383]
[1756906714428,0.90392195,111320.0,111310.0,0.96462353]
[1756906714934,0.90392195,111320.0,111310.0,0.2883]
[1756906715324,0.90398195,111320.0,111310.0,0.2883]
[1756906715726,0.90372195,111320.0,111310.0,0.2883]
[1756906716433,0.90378195,111320.0,111310.0,0.01514]
[1756906716632,0.90378195,111320.0,111310.0,0.0383]
[1756906716829,0.90336195,111320.0,111310.0,0.6491]
[1756906717041,0.02828195,111320.0,111310.0,1.32542353]
[1756906717336,0.02828195,111320.0,111310.0,1.30226353]
[1756906717936,0.02828195,111320.0,111310.0,1.39208613]
[1756906719024,0.02828195,111320.0,111310.0,1.41524613]
[1756906719234,0.88601562,111350.0,111330.0,0.1276167]
[1756906719436,0.88623562,111350.0,111340.0,0.03781]
[1756906720925,0.89123562,111350.0,111340.0,0.03881]
[1756906721123,0.93059562,111350.0,111340.0,0.01549]
[1756906721844,2.21771915,111350.0,111340.0,0.00086]
[1756906722129,2.16650353,111350.0,111340.0,0.00086]
[1756906722330,2.21486272,111350.0,111340.0,0.00086]
[1756906722539,2.17050353,111350.0,111340.0,0.00186]
[1756906723127,2.21885742,111350.0,111340.0,0.00186]
[1756906723438,2.32191404,111350.0,111340.0,0.00186]
[1756906723936,2.32191404,111350.0,111320.0,0.01449]
[1756906724130,0.40915867,111330.0,111320.0,0.01449]